fUSD/lending_fUSD_20251027
["ID","MTS","AMOUNT","RATE_DAILY","PERIOD"]
[392473643,1761534641554,-553.40535839,0.00044249,120]
[392473644,1761534641563,-394.02132562,0.00044249,120]
[392473645,1761534641572,-196.99197141,0.00044249,120]
[392473646,1761534641582,-500.0,0.00044249,120]
[392473647,1761534641591,-525.90904679,0.00044249,120]
[392473648,1761534641600,-500.0,0.00044249,120]
[392473649,1761534641609,-376.03605321,0.00044249,120]
[392473650,1761534641619,-574.04011265,0.00044249,120]
[392473651,1761534641628,-494.71983678,0.00044249,120]
[392473652,1761534641637,-165.33131682,0.00044249,120]
[392473653,1761534641646,-500.0,0.00044249,120]
[392473654,1761534641655,-480.21092876,0.00044249,120]
[392473655,1761534641664,-500.0,0.00044249,120]
[392473656,1761534641673,-500.0,0.00044249,120]
[392473657,1761534641681,-500.0,0.00044249,120]
[392473658,1761534641690,-599.43318561,0.00044249,120]
[392473659,1761534641700,-415.913972,0.00044249,120]
[392473660,1761534641709,-642.58670276,0.00044249,120]
[392473661,1761534641719,-271.07062239,0.00044249,120]
[392473662,1761534641728,-437.82788958,0.00044249,120]
[392473663,1761534641737,-500.0,0.00044249,120]
[392473664,1761534641746,-500.0,0.00044249,120]
[392473665,1761534641755,-175.23006833,0.00044249,120]
[392473666,1761534641765,-349.42228277,0.00044249,120]
[392473667,1761534641774,-4195.08,0.00044249,120]
[392473668,1761534641783,-542.94658386,0.00044249,120]
[392473669,1761534641792,-193.21962909,0.00044249,120]
[392473670,1761534641801,-173.63693064,0.00044249,120]
[392473671,1761534641811,-500.0,0.00044249,120]
[392473672,1761534641820,-500.0,0.00044249,120]
[392473673,1761534641829,-152.91979893,0.00044249,120]
[392473674,1761534641839,-500.0,0.00044249,120]
[392473675,1761534641848,-162.88407462,0.00044249,120]
[392473676,1761534641858,-341.62756257,0.00044249,120]
[392473677,1761534641867,-1094.69,0.00044249,120]
[392473678,1761534641876,-713.89,0.00044249,120]
[392473679,1761534641885,-525.23735068,0.00044249,120]
[392473680,1761534642005,-205.21949063,0.00044249,60]
[392473681,1761534642015,-448.27715897,0.00044249,120]
[392473682,1761534642024,-1791.25,0.00044249,2]
[392473683,1761534642034,-500.0,0.00044249,120]
[392473684,1761534642043,-328.87756653,0.00044249,120]
[392473685,1761534642052,-235.53703688,0.00044249,120]
[392473686,1761534642061,-385.16086777,0.00044249,120]
[392473687,1761534642071,-150.89290789,0.00044249,120]
[392473688,1761534642080,-150.92814696,0.00044249,120]
[392473689,1761534642089,-500.0,0.00044249,120]
[392473690,1761534642098,-500.0,0.00044249,2]
[392473691,1761534642108,-191.47164781,0.00044257,120]
[392473692,1761534642117,-302.50896658,0.00044257,2]
[392473693,1761534642127,-500.0,0.00044257,120]
[392473694,1761534642136,-500.0,0.00044257,120]
[392473695,1761534642145,-500.0,0.00044257,120]
[392473696,1761534642155,-500.0,0.00044257,120]
[392473697,1761534642164,-500.0,0.00044257,120]
[392473698,1761534642174,-500.0,0.00044257,2]
[392473699,1761534642183,-174.182993,0.00044257,120]
[392473700,1761534642192,-151.0,0.00044257,120]
[392473701,1761534642201,-300.0,0.00044257,2]
[392473702,1761534642210,-791.47,0.00044257,120]
[392473703,1761534642219,-500.0,0.00044257,14]
[392473704,1761534642228,-500.0,0.00044257,2]
[392473705,1761534642238,-500.0,0.00044257,120]
[392473706,1761534642247,-500.0,0.00044257,120]
[392473707,1761534642257,-500.0,0.00044257,120]
[392473708,1761534642266,-500.0,0.00044257,120]
[392473709,1761534642275,-158.0,0.00044258,7]
[392473710,1761534642284,-500.0,0.00044258,120]
[392473711,1761534642294,-500.0,0.00044258,120]
[392473712,1761534642303,-500.0,0.00044258,2]
[392473713,1761534642312,-505.46005302,0.00044258,2]
[392473714,1761534642321,-500.0,0.00044258,120]
[392473715,1761534642330,-500.0,0.00044258,120]
[392473716,1761534642339,-599.71559289,0.00044258,30]
[392473717,1761534642349,-500.0,0.00044258,120]
[392473718,1761534642358,-500.0,0.00044258,120]
[392473719,1761534642370,-159.6519038,0.00044258,120]
[392473720,1761534642380,-157.70376808,0.00044258,120]
[392473721,1761534642389,-265.58039594,0.00044258,120]
[392473722,1761534642398,-500.0,0.00044258,120]
[392473723,1761534642407,-282.15592243,0.00044258,120]
[392473724,1761534642418,-216.6261524,0.00044258,120]
[392473725,1761534642428,-612.81159901,0.00044258,120]
[392473726,1761534642437,-500.0,0.00044258,120]
[392473727,1761534642448,-500.0,0.00044258,120]
[392473728,1761534642457,-521.65761208,0.00044258,120]
[392473729,1761534642467,-151.0,0.00044258,120]
[392473730,1761534642476,-151.0,0.00044258,120]
[392473731,1761534642485,-170.809969,0.00044258,120]
[392473732,1761534642494,-158.864038,0.00044258,120]
[392473733,1761534642504,-157.262268,0.00044258,120]
[392473734,1761534642514,-151.000005,0.00044258,120]
[392473735,1761534642524,-500.0,0.00044258,120]
[392473736,1761534642535,-500.0,0.00044258,120]
[392473737,1761534642543,-151.0,0.00044258,120]
[392473738,1761534642552,-151.0,0.00044258,120]
[392473739,1761534642562,-151.0,0.00044258,120]
[392473740,1761534642572,-151.0,0.00044258,120]
[392473741,1761534642582,-500.0,0.00044258,2]
[392473742,1761534642592,-151.0,0.00044258,120]
[392473743,1761534642601,-301.42296263,0.00044258,2]
[392473744,1761534642610,-151.0,0.00044258,120]
[392473745,1761534642620,-151.0,0.00044258,120]
[392473746,1761534642631,-791.47,0.00044258,120]
[392473747,1761534642639,-500.0,0.00044258,14]
[392473748,1761534642648,-500.0,0.00044258,2]
[392473749,1761534642657,-500.0,0.00044258,120]
[392473750,1761534642666,-151.0,0.00044259,120]
[392473751,1761534642675,-151.0,0.00044259,120]
[392473752,1761534642684,-151.0,0.00044259,120]
[392473753,1761534642693,-151.0,0.00044259,120]
[392473754,1761534642702,-151.0,0.00044259,120]
[392473755,1761534642711,-151.0,0.00044259,120]
[392473756,1761534642720,-290.431755,0.00044259,120]
[392473757,1761534642729,-151.0,0.00044259,120]
[392473758,1761534642738,-296.754448,0.00044259,120]
[392473759,1761534642747,-151.0,0.00044259,120]
[392473760,1761534642756,-151.0,0.00044259,120]
[392473761,1761534642765,-151.0,0.00044259,120]
[392473762,1761534642774,-151.0,0.00044259,120]
[392473763,1761534642783,-453.74668987,0.00044259,7]
[392473764,1761534642791,-453.74668987,0.00044259,7]
[392473765,1761534642800,-791.47,0.00044266,120]
[392473766,1761534642809,-500.0,0.00044266,14]
[392473767,1761534642818,-500.0,0.00044266,120]
[392473768,1761534642827,-151.0,0.00044267,120]
[392473769,1761534642837,-151.0,0.00044267,120]
[392473770,1761534642846,-500.0,0.00044267,120]
[392473771,1761534642856,-158.48128878,0.00044267,120]
[392473772,1761534642865,-500.0,0.00044267,120]
[392473773,1761534642875,-500.0,0.00044267,120]
[392473774,1761534642884,-543.52954634,0.00044267,120]
[392473775,1761534642893,-500.0,0.00044267,120]
[392473776,1761534642901,-632.62861141,0.00044267,120]
[392473778,1761534642910,-500.0,0.00044267,120]
[392473780,1761534642920,-500.0,0.00044267,120]
[392473782,1761534642929,-339.58132542,0.00044267,2]
[392473787,1761534644981,-1.6e-07,0.00044267,2]
[392473788,1761534645051,-269.72072881,0.00044249,120]
[392473790,1761534646082,-193.28,0.00029012,2]
[392473791,1761534646091,-150.0,0.0004164,7]
[392473792,1761534646100,-280.475,0.000435,2]
[392473793,1761534646135,-369.84254318,0.000435,2]
[392473824,1761534847979,1349.3977782,0.0003885,50]
[392473851,1761535261290,198.0,0.00038852,120]
[392473863,1761535535097,-150.0,0.00029124,2]
[392473864,1761535535122,-177.82949851,0.00032,120]
[392473865,1761535535147,-195.0,0.00032036,120]
[392473866,1761535535171,-123.58907462,0.00032036,2]
[392473867,1761535554525,11208.6437022,0.00015,10]
[392473876,1761535646087,-177.8294985,0.00032,120]
[392473877,1761535646108,-132.20571162,0.00032036,2]
[392473878,1761535646128,-166.66666668,0.00032692,2]
[392473879,1761535646148,-233.29839259,0.00032792,2]
[392473880,1761535646168,-176.74,0.00034198,2]
[392473881,1761535646190,-191.1779338,0.000365,120]
[392473882,1761535646212,-240.0,0.00036749,2]
[392473883,1761535646233,-16838.43560766,0.0003675,2]
[392473884,1761535646254,-792.0,0.00037354,2]
[392473885,1761535646273,-1016.0,0.0003769,2]
[392473886,1761535646293,-183.0093458,0.0003803,2]
[392473887,1761535646313,-632.0,0.00038054,2]
[392473888,1761535646332,-1212.0,0.0003813,2]
[392473889,1761535646351,-1411.0,0.00038206,2]
[392473890,1761535646371,-1126.0,0.00038282,2]
[392473891,1761535646391,-152.0,0.00038444,3]
[392473892,1761535646411,-1500.83350403,0.00038506,2]
[392473893,1761535646430,-999.0,0.00038597,3]
[392473894,1761535646453,-276.0,0.0003885,5]
[392473895,1761535646475,-1600.0,0.0003885,5]
[392473896,1761535646496,-773.0,0.00038851,4]
[392473897,1761535646518,-316.57909835,0.00038851,15]
[392473898,1761535646538,-414.43363048,0.00038851,7]
[392473899,1761535646557,-500.0,0.00038851,7]
[392473900,1761535646579,-500.0,0.00038851,15]
[392473901,1761535646751,-500.0,0.00038851,15]
[392473902,1761535646775,-448.34436322,0.00038851,15]
[392473903,1761535646799,-1000.0,0.00038852,7]
[392473904,1761535646824,-1000.0,0.00038852,7]
[392473905,1761535646845,-1000.0,0.00038852,7]
[392473906,1761535646866,-1000.0,0.00039126,7]
[392473907,1761535646886,-1000.0,0.00039126,7]
[392473908,1761535646905,-1000.0,0.00039126,7]
[392473909,1761535646924,-1473.9283738,0.00039327,2]
[392473910,1761535646944,-1000.0,0.000394,7]
[392473911,1761535646965,-1000.0,0.000394,7]
[392473912,1761535646984,-1000.0,0.000394,7]
[392473913,1761535647003,-5979.52,0.00039484,2]
[392473914,1761535647022,-9999.99,0.00039484,2]
[392473915,1761535647043,-1000.0,0.00039674,7]
[392473916,1761535647062,-1000.0,0.00039674,7]
[392473917,1761535647082,-1000.0,0.00039674,7]
[392473918,1761535647102,-1248.94698152,0.00039934,2]
[392473919,1761535647123,-1000.0,0.00039948,7]
[392473920,1761535647143,-1000.0,0.00039948,7]
[392473921,1761535647162,-1000.0,0.00039948,7]
[392473922,1761535647182,-500.0,0.0004,30]
[392473923,1761535647201,-500.0,0.0004,30]
[392473924,1761535647222,-910.57552216,0.0004,30]
[392473925,1761535647241,-500.0,0.0004,30]
[392473926,1761535647262,-500.0,0.0004,30]
[392473927,1761535647282,-500.0,0.0004,30]
[392473928,1761535647301,-500.0,0.0004,30]
[392473929,1761535647321,-500.0,0.0004,30]
[392473930,1761535647341,-519.27811396,0.0004,30]
[392473931,1761535647359,-1000.0,0.00040222,7]
[392473932,1761535647378,-1000.0,0.00040222,7]
[392473933,1761535647397,-1000.0,0.00040222,7]
[392473934,1761535647415,-183.0093458,0.00040233,2]
[392473935,1761535647434,-476.74869043,0.00040305,2]
[392473936,1761535647453,-151.0,0.00040309,2]
[392473937,1761535647473,-151.0,0.00040309,2]
[392473938,1761535647491,-159.19244305,0.00040309,2]
[392473939,1761535647511,-151.0,0.00040309,2]
[392473940,1761535647533,-151.0,0.00040309,2]
[392473941,1761535647557,-151.0,0.00040309,2]
[392473942,1761535647583,-151.0,0.00040309,2]
[392473943,1761535647606,-151.0,0.00040309,2]
[392473944,1761535647628,-151.0,0.00040309,2]
[392473945,1761535647651,-151.0,0.00040309,2]
[392473946,1761535647677,-221.718,0.00040332,57]
[392473947,1761535647697,-179.21,0.00040333,2]
[392473948,1761535647719,-988.54,0.00040333,2]
[392473949,1761535647740,-15964.68,0.00040333,2]
[392473950,1761535647760,-150.99,0.00040333,2]
[392473951,1761535647780,-152.0,0.00040388,4]
[392473952,1761535647799,-1000.0,0.00040496,7]
[392473953,1761535647818,-1000.0,0.00040496,7]
[392473954,1761535647838,-299.94,0.00040888,2]
[392473955,1761535647857,-303.98,0.00041948,2]
[392473956,1761535647876,-1000.0,0.00042,30]
[392473957,1761535647896,-1000.0,0.00042,30]
[392473958,1761535647917,-1000.0,0.00042,30]
[392473959,1761535647938,-1000.0,0.00042,30]
[392473960,1761535647965,-1000.0,0.00042,30]
[392473961,1761535647986,-1000.0,0.00042,30]
[392473962,1761535648009,-1000.0,0.00042,30]
[392473963,1761535648029,-1000.0,0.00042,30]
[392473964,1761535648049,-1000.0,0.00042,30]
[392473965,1761535648070,-1000.0,0.00042,30]
[392473966,1761535648089,-1000.0,0.00042,30]
[392473967,1761535648110,-299.45142508,0.00042,30]
[392473968,1761535648130,-221.37,0.00042,30]
[392473969,1761535648151,-152.0,0.00042333,5]
[392473970,1761535648171,-6625.2234,0.00042556,2]
[392473971,1761535648190,-233.9129,0.00042556,2]
[392473972,1761535648212,-279.2671,0.00042556,2]
[392473973,1761535648233,-4063.5368,0.00042556,2]
[392473974,1761535648253,-16700.26,0.00042656,7]
[392473975,1761535648273,-1852.42,0.00042675,2]
[392473976,1761535648293,-446.43,0.00042701,2]
[392473977,1761535648314,-166.66,0.0004272,2]
[392473978,1761535648334,-251.67502813,0.00042823,2]
[392473979,1761535648353,-168.38036015,0.00043048,2]
[392473980,1761535648375,-1600.0,0.00043095,120]
[392473981,1761535648394,-200.0,0.00043148,2]
[392473982,1761535648414,-500.0,0.00043356,60]
[392473983,1761535648435,-179.92,0.0004337,120]
[392473984,1761535648457,-172.56966938,0.000436,120]
[392473985,1761535648480,-168.0,0.00043714,2]
[392473986,1761535648501,-960.5495,0.0004382,20]
[392473987,1761535648525,-500.0,0.00043835,120]
[392473988,1761535648545,-500.0,0.00043835,120]
[392473989,1761535648565,-500.0,0.00043835,120]
[392473990,1761535648586,-292.32,0.00043835,120]
[392473991,1761535648607,-328.74642169,0.00043835,120]
[392473992,1761535648626,-301.02724609,0.00043836,120]
[392473993,1761535648647,-877.22814605,0.00043906,2]
[392473994,1761535648671,-219.73091868,0.00043975,15]
[392473995,1761535648691,-570.0,0.00043987,2]
[392473996,1761535648711,-820.0,0.00043987,2]
[392473997,1761535648732,-2055.0,0.00043987,2]
[392473998,1761535648753,-3416.0,0.00043987,2]
[392473999,1761535648772,-1593.0,0.00043987,2]
[392474000,1761535648791,-606.0,0.00043987,2]
[392474001,1761535648811,-1313.0,0.00043987,2]
[392474002,1761535648830,-1270.0,0.00043987,2]
[392474003,1761535648849,-818.0,0.00043987,2]
[392474004,1761535648868,-3490.0,0.00043987,2]
[392474005,1761535648887,-558.0,0.00043987,2]
[392474006,1761535648906,-535.682,0.00043987,2]
[392474007,1761535648930,-904.0,0.00043987,2]
[392474008,1761535648950,-727.24,0.00044,120]
[392474009,1761535648970,-284.56,0.00044,120]
[392474010,1761535648989,-201.12,0.00044,120]
[392474011,1761535649011,-12417.3290961,0.0004402,2]
[392474012,1761535649032,-2038.3674931,0.0004402,2]
[392474013,1761535649052,-150.0,0.0004402,2]
[392474014,1761535649073,-150.0,0.00044047,2]
[392474015,1761535649094,-3440.6994,0.00044058,2]
[392474016,1761535649113,-2138.5755,0.00044067,2]
[392474017,1761535649133,-150.0,0.00044075,2]
[392474018,1761535649154,-219.73091862,0.00044078,15]
[392474019,1761535649174,-250.0,0.00044102,2]
[392474020,1761535649193,-166.66,0.0004413,2]
[392474021,1761535649212,-371.00267645,0.00044148,2]
[392474022,1761535649231,-500.0,0.00044148,120]
[392474023,1761535649251,-175.10499272,0.00044148,120]
[392474024,1761535649271,-425.33069202,0.00044148,120]
[392474025,1761535649292,-568.1641883,0.00044148,120]
[392474026,1761535649313,-500.0,0.00044148,120]
[392474027,1761535649333,-500.0,0.00044148,120]
[392474028,1761535649353,-704.97,0.00044148,120]
[392474029,1761535649373,-89.80182983,0.00044148,2]
[392474031,1761535670418,282.58516318,0.000215,2]
[392474032,1761535673195,11863.77113462,0.00018,2]
[392474033,1761535673219,4680.39190305,0.00018,2]
[392474034,1761535673243,6213.19190305,0.00018,2]
[392474035,1761535673265,5194.92791306,0.00018,2]
[392474036,1761535675194,1018.26398999,0.000181,2]
[392474037,1761535675216,742.58645263,0.000181,2]
[392474039,1761535706262,160.5,0.00013699,2]
[392474040,1761535706464,160.5,0.00020187,2]
[392474055,1761535747271,-611.73939695,0.00026,2]
[392474056,1761535761087,-1225.10870109,0.00026,2]
[392474057,1761535761109,-213.48126044,0.00026,2]
[392474058,1761535761130,-160.5,0.00026676,2]
[392474059,1761535761149,-469.46273162,0.00027,2]
[392474060,1761535761170,-250.0,0.000286,2]
[392474061,1761535761191,-106.42525775,0.00033165,2]
[392474081,1761535832451,-150.0,0.00033165,2]
[392474082,1761535832463,-54.07474225,0.00033165,2]
[392474083,1761535832473,-109.84828969,0.00037976,7]
[392474084,1761535832507,-173.18401907,0.00037976,7]
[392474085,1761535832517,-500.0,0.00037976,2]
[392474086,1761535832527,-500.0,0.00037976,15]
[392474087,1761535832537,-500.0,0.00037976,15]
[392474088,1761535832547,-202.76329187,0.00037976,2]
[392474089,1761535832560,-494.83443632,0.00037976,15]
[392474090,1761535832571,-9832.45733777,0.00037977,2]
[392474091,1761535832583,-37138.73227607,0.00037977,2]
[392474092,1761535832593,-507.42252018,0.00038255,2]
[392474093,1761535832603,-806.97814948,0.00038355,120]
[392474094,1761535832614,-500.0,0.00038652,2]
[392474095,1761535832624,-175.78473495,0.00038752,2]
[392474096,1761535832636,-1000.0,0.00038852,7]
[392474097,1761535832649,-1000.0,0.00038852,7]
[392474098,1761535832661,-1000.0,0.00038852,7]
[392474099,1761535832672,-16656.10041194,0.00038852,2]
[392474100,1761535832682,-274.84505481,0.00038852,30]
[392474101,1761535832692,-940.21189745,0.00038852,30]
[392474102,1761535832702,-5269.48590346,0.00038852,2]
[392474103,1761535832712,-352.26854247,0.00038852,2]
[392474104,1761535832722,-2494.36410696,0.00038852,2]
[392474105,1761535832732,-1882.68197536,0.00038852,2]
[392474106,1761535832742,-100674.80124105,0.00038852,2]
[392474107,1761535832752,-1407.2063438,0.00038852,2]
[392474108,1761535832761,-731.9033794,0.00038852,30]
[392474109,1761535832771,-2449.03493209,0.00038852,2]
[392474110,1761535832781,-63233.23822719,0.00038852,2]
[392474111,1761535832791,-3554.71072189,0.00038852,2]
[392474112,1761535832800,-153.60031049,0.00038852,30]
[392474113,1761535832810,-1000.0,0.00039126,7]
[392474114,1761535832820,-1000.0,0.00039126,7]
[392474115,1761535832830,-1000.0,0.00039126,7]
[392474116,1761535832840,-175.78473489,0.00039354,2]
[392474117,1761535832851,-1000.0,0.000394,7]
[392474118,1761535832863,-1000.0,0.000394,7]
[392474119,1761535832876,-1000.0,0.000394,7]
[392474120,1761535832886,-160.5,0.00039654,2]
[392474121,1761535832896,-1000.0,0.00039674,7]
[392474122,1761535832906,-1000.0,0.00039674,7]
[392474123,1761535832915,-1000.0,0.00039674,7]
[392474124,1761535832925,-175.78473489,0.00039956,15]
[392474125,1761535832935,-816.88913487,0.0004,30]
[392474126,1761535832946,-5024.28456722,0.0004,120]
[392474127,1761535832955,-1158.64723624,0.0004,120]
[392474128,1761535832965,-159.15425931,0.0004,120]
[392474129,1761535832975,-175.78473489,0.00040558,15]
[392474130,1761535832992,-175.78473489,0.0004116,15]
[392474131,1761535833004,-175.78473489,0.00041761,15]
[392474132,1761535833015,-178.62620062,0.00042,30]
[392474133,1761535833025,-236.2448002,0.00042,120]
[392474134,1761535833035,-175.78473489,0.00042363,15]
[392474135,1761535833045,-300.0,0.00042657,2]
[392474136,1761535833054,-175.78473489,0.00042965,15]
[392474137,1761535833064,-993.88491562,0.00043,120]
[392474138,1761535833074,-618.08416995,0.00043265,50]
[392474139,1761535833084,-434.61800939,0.00043356,60]
[392474140,1761535833094,-157.11071965,0.000435,120]
[392474141,1761535833104,-175.78473489,0.00043567,15]
[392474142,1761535833115,-659.56,0.00043835,120]
[392474143,1761535833126,-622.16139239,0.00043835,120]
[392474144,1761535833136,-500.0,0.00043835,14]
[392474146,1761535833146,-500.0,0.00043835,120]
[392474148,1761535833156,-558.33,0.00043835,120]
[392474151,1761535833166,-500.0,0.00043835,120]
[392474153,1761535833175,-820.0,0.00043987,2]
[392474156,1761535833185,-300.0,0.00044027,2]
[392474159,1761535833198,-960.5495,0.000441,21]
[392474160,1761535833208,-626.76266314,0.00044147,120]
[392474161,1761535833218,-250.0,0.00044147,120]
[392474162,1761535833228,-250.0,0.00044147,120]
[392474163,1761535833238,-250.0,0.00044147,120]
[392474165,1761535833247,-250.0,0.00044147,120]
[392474167,1761535833258,-250.0,0.00044147,120]
[392474169,1761535833268,-250.0,0.00044147,120]
[392474171,1761535833278,-250.0,0.00044147,120]
[392474173,1761535833288,-262.91393046,0.00044147,120]
[392474175,1761535833298,-151.0,0.00044147,120]
[392474177,1761535833308,-151.0,0.00044147,120]
[392474179,1761535833319,-151.0,0.00044147,120]
[392474181,1761535833328,-151.0,0.00044147,120]
[392474183,1761535833338,-151.0,0.00044147,120]
[392474185,1761535833348,-152.07807061,0.00044147,120]
[392474187,1761535833358,-500.0,0.00044148,120]
[392474189,1761535833368,-500.0,0.00044148,120]
[392474191,1761535833378,-1000.0,0.00044149,2]
[392474192,1761535833388,-851.76,0.00044152,30]
[392474193,1761535833398,-181.11,0.00044152,30]
[392474194,1761535833411,-301.21,0.00044152,30]
[392474195,1761535833421,-572.61,0.00044152,30]
[392474196,1761535833431,-150.0,0.00044152,30]
[392474197,1761535833441,-151.78,0.00044152,30]
[392474198,1761535833452,-172.67,0.00044152,30]
[392474199,1761535833462,-152.19,0.00044152,30]
[392474200,1761535833472,-2484.75,0.00044152,30]
[392474201,1761535833482,-150.0,0.00044152,30]
[392474202,1761535833491,-150.0,0.00044152,30]
[392474203,1761535833501,-156.23993675,0.00044158,28]
[392474204,1761535833510,-172.39021181,0.00044158,15]
[392474205,1761535833520,-546.01427116,0.00044165,15]
[392474206,1761535833531,-546.01427116,0.00044167,15]
[392474207,1761535833541,-546.01427116,0.00044168,15]
[392474208,1761535833550,-1200.2247,0.00044168,120]
[392474209,1761535833560,-13628.5075,0.00044168,120]
[392474210,1761535833570,-500.0,0.00044169,60]
[392474211,1761535833580,-500.0,0.00044169,60]
[392474212,1761535833590,-500.0,0.00044169,60]
[392474213,1761535833600,-164.55055547,0.00044169,14]
[392474214,1761535833614,-546.01427116,0.00044169,15]
[392474215,1761535833624,-175.78473489,0.00044169,15]
[392474216,1761535833634,-896.10463045,0.00044215,2]
[392474217,1761535833644,-500.0,0.00044249,120]
[392474218,1761535833654,-505.47702461,0.00044249,120]
[392474219,1761535833664,-500.0,0.00044249,120]
[392474220,1761535833674,-500.0,0.00044249,120]
[392474221,1761535833685,-217.82008226,0.00044249,120]
[392474222,1761535833694,-631.3619204,0.00044249,120]
[392474223,1761535833704,-295.0162419,0.00044249,120]
[392474224,1761535833714,-500.0,0.00044249,120]
[392474225,1761535833724,-500.0,0.00044249,120]
[392474226,1761535833733,-500.0,0.00044249,120]
[392474227,1761535833743,-500.0,0.00044249,120]
[392474228,1761535833753,-500.0,0.00044249,120]
[392474229,1761535833763,-500.0,0.00044249,120]
[392474230,1761535833773,-500.0,0.00044249,120]
[392474231,1761535833782,-1049.07,0.00044249,120]
[392474232,1761535833792,-1789.65,0.00044249,2]
[392474233,1761535833803,-28756.569781,0.00044249,3]
[392474234,1761535833812,-564.8078935,0.00044256,120]
[392474235,1761535833826,-500.0,0.00044256,120]
[392474236,1761535834010,-500.0,0.00044256,120]
[392474237,1761535834022,-500.0,0.00044256,120]
[392474238,1761535834033,-500.0,0.00044256,120]
[392474239,1761535834045,-500.0,0.00044256,120]
[392474240,1761535834056,-500.0,0.00044256,120]
[392474241,1761535834066,-385.69378252,0.00044256,120]
[392474242,1761535834077,-211.34221083,0.00044256,120]
[392474243,1761535834087,-4020.29,0.00044256,120]
[392474244,1761535834097,-468.2972994,0.00044256,120]
[392474245,1761535834107,-500.0,0.00044256,120]
[392474246,1761535834118,-696.43,0.00044256,120]
[392474247,1761535834128,-500.0,0.00044257,2]
[392474248,1761535834139,-507.88808738,0.00044257,120]
[392474249,1761535834149,-151.0,0.00044257,120]
[392474250,1761535834160,-219.49106,0.00044257,120]
[392474251,1761535834171,-659.56,0.00044257,120]
[392474252,1761535834182,-500.0,0.00044257,14]
[392474253,1761535834195,-500.0,0.00044257,120]
[392474254,1761535834204,-558.33,0.00044257,120]
[392474255,1761535834214,-500.0,0.00044257,120]
[392474256,1761535834224,-14378.2848905,0.00044257,3]
[392474257,1761535834234,-115026.279124,0.00044258,3]
[392474258,1761535834243,-325.6801159,0.00044258,3]
[392474259,1761535834253,-500.0,0.00044258,2]
[392474260,1761535834263,-500.0,0.00044258,2]
[392474261,1761535834272,-519.88630032,0.00044258,120]
[392474262,1761535834282,-500.0,0.00044258,2]
[392474263,1761535834292,-500.0,0.00044258,2]
[392474264,1761535834302,-500.0,0.00044258,120]
[392474265,1761535834312,-500.0,0.00044258,120]
[392474266,1761535834323,-500.0,0.00044258,120]
[392474267,1761535834334,-580.70761122,0.00044258,120]
[392474268,1761535834343,-500.0,0.00044258,120]
[392474269,1761535834353,-500.0,0.00044258,120]
[392474270,1761535834365,-500.0,0.00044258,120]
[392474271,1761535834375,-500.0,0.00044258,120]
[392474272,1761535834386,-500.0,0.00044258,120]
[392474273,1761535834397,-500.0,0.00044258,120]
[392474274,1761535834407,-151.0,0.00044258,120]
[392474275,1761535834417,-151.0,0.00044258,120]
[392474276,1761535834428,-564.5525446,0.00044258,120]
[392474277,1761535834438,-500.0,0.00044258,120]
[392474278,1761535834449,-500.0,0.00044258,120]
[392474279,1761535834459,-300.0,0.00044258,120]
[392474280,1761535834470,-300.0,0.00044258,120]
[392474281,1761535834480,-513.78992525,0.00044258,120]
[392474282,1761535834491,-500.0,0.00044258,2]
[392474283,1761535834501,-500.0,0.00044258,2]